[Event "Titled Tuesday Blitz August 31 2021"]
[White "Isajevsky, Anton"]
[Black "Assaubayeva, Bibisara"]
[WhiteFideId "4142500"]
[BlackFideId "13708694"]
[WhiteElo "2510"]
[BlackElo "2232"]
[Result "1-0"]
[Round "09"]
[TimeControl "180+1"]
[Date "2021.08.31"]
[WhiteClock "0:00:02"]
[BlackClock "0:00:05"]

1. c4 {[%clk 0:03:00]}  Nf6 {[%clk 0:02:59]} 2. Nc3 {[%clk 0:02:57]}  g6 {[%clk 0:03:00]} 3. g3 {[%clk 0:02:52]}  Bg7 {[%clk 0:02:59]} 4. Bg2 {[%clk 0:02:52]}  O-O {[%clk 0:03:00]} 5. e3 {[%clk 0:02:52]}  c5 {[%clk 0:02:55]} 6. Nge2 {[%clk 0:02:52]}  Nc6 {[%clk 0:02:55]} 7. O-O {[%clk 0:02:52]}  b6 {[%clk 0:02:50]} 8. d4 {[%clk 0:02:51]}  Bb7 {[%clk 0:02:50]} 9. b3 {[%clk 0:02:49]}  d6 {[%clk 0:02:43]} 10. Bb2 {[%clk 0:02:47]}  cxd4 {[%clk 0:02:35]} 11. exd4 {[%clk 0:02:38]}  e5 {[%clk 0:02:31]} 12. Qd2 {[%clk 0:02:21]}  Nd7 {[%clk 0:02:23]} 13. Rad1 {[%clk 0:02:16]}  exd4 {[%clk 0:01:51]} 14. Nb5 {[%clk 0:02:10]}  Nc5 {[%clk 0:01:44]} 15. Nexd4 {[%clk 0:02:02]}  Nxd4 {[%clk 0:01:41]} 16. Bxd4 {[%clk 0:02:02]}  Bxg2 {[%clk 0:01:41]} 17. Kxg2 {[%clk 0:02:00]}  Ne4 {[%clk 0:01:13]} 18. Qf4 {[%clk 0:01:58]}  Re8 {[%clk 0:01:03]} 19. Bxg7 {[%clk 0:01:50]}  Kxg7 {[%clk 0:01:02]} 20. Nxd6 {[%clk 0:01:50]}  Nxd6 {[%clk 0:01:02]} 21. Rxd6 {[%clk 0:01:51]}  Qe7 {[%clk 0:01:02]} 22. Rfd1 {[%clk 0:01:44]}  Qe4+ {[%clk 0:00:55]} 23. Qxe4 {[%clk 0:01:43]}  Rxe4 {[%clk 0:00:56]} 24. Kf3 {[%clk 0:01:42]}  Rae8 {[%clk 0:00:55]} 25. R1d4 {[%clk 0:01:31]}  Re2 {[%clk 0:00:51]} 26. Rd2 {[%clk 0:01:27]}  Rxd2 {[%clk 0:00:50]} 27. Rxd2 {[%clk 0:01:27]}  Re6 {[%clk 0:00:50]} 28. Re2 {[%clk 0:01:22]}  Rd6 {[%clk 0:00:49]} 29. Ke3 {[%clk 0:01:22]}  g5 {[%clk 0:00:48]} 30. Rd2 {[%clk 0:01:16]}  Re6+ {[%clk 0:00:40]} 31. Kd4 {[%clk 0:01:08]}  Rh6 {[%clk 0:00:36]} 32. f4 {[%clk 0:01:05]}  gxf4 {[%clk 0:00:36]} 33. gxf4 {[%clk 0:01:05]}  Rh4 {[%clk 0:00:33]} 34. Ke5 {[%clk 0:01:03]}  Kf8 {[%clk 0:00:23]} 35. f5 {[%clk 0:01:00]}  Ke7 {[%clk 0:00:20]} 36. f6+ {[%clk 0:00:53]}  Ke8 {[%clk 0:00:20]} 37. a4 {[%clk 0:00:18]}  Rh5+ {[%clk 0:00:18]} 38. Kd6 {[%clk 0:00:16]}  Rf5 {[%clk 0:00:18]} 39. Kc7 {[%clk 0:00:16]}  Rxf6 {[%clk 0:00:18]} 40. Kb7 {[%clk 0:00:16]}  a5 {[%clk 0:00:17]} 41. Rd5 {[%clk 0:00:10]}  Re6 {[%clk 0:00:17]} 42. Rh5 {[%clk 0:00:08]}  h6 {[%clk 0:00:16]} 43. c5 {[%clk 0:00:09]}  bxc5 {[%clk 0:00:15]} 44. Rxc5 {[%clk 0:00:09]}  Re3 {[%clk 0:00:15]} 45. Rb5 {[%clk 0:00:08]}  Ke7 {[%clk 0:00:14]} 46. Kb6 {[%clk 0:00:08]}  f5 {[%clk 0:00:14]} 47. Rxf5 {[%clk 0:00:08]}  Rxb3+ {[%clk 0:00:14]} 48. Kxa5 {[%clk 0:00:08]}  Rh3 {[%clk 0:00:15]} 49. Rf2 {[%clk 0:00:08]}  Rh4 {[%clk 0:00:15]} 50. Rd2 {[%clk 0:00:08]}  Rh3 {[%clk 0:00:11]} 51. Kb5 {[%clk 0:00:07]}  Rb3+ {[%clk 0:00:11]} 52. Ka6 {[%clk 0:00:07]}  Rb1 {[%clk 0:00:11]} 53. a5 {[%clk 0:00:07]}  h5 {[%clk 0:00:10]} 54. Ka7 {[%clk 0:00:07]}  Ke6 {[%clk 0:00:10]} 55. a6 {[%clk 0:00:07]}  Rb4 {[%clk 0:00:09]} 56. Ka8 {[%clk 0:00:07]}  Rb6 {[%clk 0:00:09]} 57. a7 {[%clk 0:00:06]}  Ke7 {[%clk 0:00:10]} 58. Rd5 {[%clk 0:00:06]}  h4 {[%clk 0:00:09]} 59. Rh5 {[%clk 0:00:06]}  Kd7 {[%clk 0:00:08]} 60. Rxh4 {[%clk 0:00:06]}  Kc7 {[%clk 0:00:07]} 61. Rh7+ {[%clk 0:00:06]}  Kc8 {[%clk 0:00:07]} 62. h4 {[%clk 0:00:04]}  Rb1 {[%clk 0:00:06]} 63. h5 {[%clk 0:00:04]}  Rh1 {[%clk 0:00:05]} 64. h6 {[%clk 0:00:03]}  Rh2 {[%clk 0:00:05]} 65. Rh8+ {[%clk 0:00:03]}  Kc7 {[%clk 0:00:05]} 66. h7 {[%clk 0:00:03]}  Rh1 {[%clk 0:00:05]} 67. Rb8 {[%clk 0:00:02]} 1-0


[Site "https://www.chess.com"]

[Event "Titled Tuesday Blitz August 31 2021"]
[White "Ivanchuk, Vasyl"]
[Black "Dzagnidze, Nana"]
[WhiteFideId "14100010"]
[BlackFideId "13601903"]
[WhiteElo "2710"]
[BlackElo "2391"]
[Result "1-0"]
[Round "09"]
[TimeControl "180+1"]
[Date "2021.08.31"]
[WhiteClock "0:00:59"]
[BlackClock "0:00:02"]

1. d4 {[%clk 0:03:00]}  Nf6 {[%clk 0:02:57]} 2. c4 {[%clk 0:03:00]}  e6 {[%clk 0:02:57]} 3. Nc3 {[%clk 0:03:00]}  Bb4 {[%clk 0:02:57]} 4. Nf3 {[%clk 0:02:59]}  O-O {[%clk 0:02:54]} 5. Bd2 {[%clk 0:02:57]}  d5 {[%clk 0:02:52]} 6. a3 {[%clk 0:02:51]}  Be7 {[%clk 0:02:50]} 7. e3 {[%clk 0:02:50]}  b6 {[%clk 0:02:47]} 8. cxd5 {[%clk 0:02:41]}  exd5 {[%clk 0:02:41]} 9. Ne5 {[%clk 0:02:41]}  c5 {[%clk 0:02:36]} 10. Bd3 {[%clk 0:02:39]}  Bb7 {[%clk 0:02:18]} 11. O-O {[%clk 0:02:38]}  Nc6 {[%clk 0:02:17]} 12. Be1 {[%clk 0:02:34]}  cxd4 {[%clk 0:02:14]} 13. Nxc6 {[%clk 0:02:33]}  Bxc6 {[%clk 0:02:13]} 14. exd4 {[%clk 0:02:33]}  Ne4 {[%clk 0:02:06]} 15. Rc1 {[%clk 0:02:24]}  Bb7 {[%clk 0:02:06]} 16. f3 {[%clk 0:02:18]}  Nxc3 {[%clk 0:01:57]} 17. Bxc3 {[%clk 0:02:17]}  Bf6 {[%clk 0:01:56]} 18. Re1 {[%clk 0:02:13]}  g6 {[%clk 0:01:54]} 19. Rc2 {[%clk 0:02:11]}  Qd7 {[%clk 0:01:50]} 20. Rce2 {[%clk 0:02:09]}  Rfe8 {[%clk 0:01:49]} 21. Qd2 {[%clk 0:02:07]}  Bc6 {[%clk 0:01:45]} 22. Qf4 {[%clk 0:02:02]}  Bg7 {[%clk 0:01:44]} 23. Kf2 {[%clk 0:01:58]}  h5 {[%clk 0:01:30]} 24. Rxe8+ {[%clk 0:01:39]}  Rxe8 {[%clk 0:01:29]} 25. Rxe8+ {[%clk 0:01:39]}  Qxe8 {[%clk 0:01:30]} 26. Qd6 {[%clk 0:01:39]}  Bf8 {[%clk 0:01:18]} 27. Qc7 {[%clk 0:01:30]}  Bh6 {[%clk 0:01:16]} 28. Qe5 {[%clk 0:01:26]}  Bg7 {[%clk 0:01:07]} 29. Qxe8+ {[%clk 0:01:24]}  Bxe8 {[%clk 0:01:08]} 30. Ke3 {[%clk 0:01:23]}  Bd7 {[%clk 0:01:00]} 31. Bb4 {[%clk 0:01:21]}  Bh6+ {[%clk 0:00:36]} 32. f4 {[%clk 0:01:19]}  Bf8 {[%clk 0:00:34]} 33. Bxf8 {[%clk 0:01:14]}  Kxf8 {[%clk 0:00:35]} 34. f5 {[%clk 0:01:14]}  g5 {[%clk 0:00:33]} 35. f6 {[%clk 0:01:12]}  Ke8 {[%clk 0:00:32]} 36. g3 {[%clk 0:01:07]}  Bh3 {[%clk 0:00:15]} 37. Bb5+ {[%clk 0:01:02]}  Kd8 {[%clk 0:00:16]} 38. Bc6 {[%clk 0:01:02]}  Bg2 {[%clk 0:00:16]} 39. h4 {[%clk 0:01:00]}  gxh4 {[%clk 0:00:14]} 40. gxh4 {[%clk 0:01:00]}  Bh1 {[%clk 0:00:02]} 41. Kf4 {[%clk 0:00:59]} 1-0


[Site "https://www.chess.com"]

[Event "Titled Tuesday Blitz August 31 2021"]
[White "Jaracz, Pawel"]
[Black "Kuzubov, Yuriy"]
[WhiteFideId "1102222"]
[BlackFideId "14112906"]
[WhiteElo "2495"]
[BlackElo "2564"]
[Result "1/2-1/2"]
[Round "09"]
[TimeControl "180+1"]
[Date "2021.08.31"]
[WhiteClock "0:00:02"]
[BlackClock "0:00:04"]

1. d4 {[%clk 0:03:00]}  Nf6 {[%clk 0:02:59]} 2. c4 {[%clk 0:03:01]}  e6 {[%clk 0:02:59]} 3. Nc3 {[%clk 0:03:01]}  d5 {[%clk 0:02:59]} 4. cxd5 {[%clk 0:03:00]}  exd5 {[%clk 0:03:00]} 5. Bg5 {[%clk 0:03:00]}  c6 {[%clk 0:03:00]} 6. e3 {[%clk 0:03:00]}  Bd6 {[%clk 0:02:57]} 7. Bd3 {[%clk 0:03:00]}  Nbd7 {[%clk 0:02:53]} 8. Qc2 {[%clk 0:02:55]}  h6 {[%clk 0:02:52]} 9. Bh4 {[%clk 0:02:54]}  O-O {[%clk 0:02:48]} 10. Nf3 {[%clk 0:02:51]}  Qc7 {[%clk 0:02:40]} 11. O-O {[%clk 0:02:45]}  Ng4 {[%clk 0:02:38]} 12. Bg3 {[%clk 0:02:43]}  Bxg3 {[%clk 0:02:38]} 13. hxg3 {[%clk 0:02:43]}  Ndf6 {[%clk 0:02:36]} 14. b4 {[%clk 0:02:42]}  Bd7 {[%clk 0:02:25]} 15. Ne2 {[%clk 0:02:33]}  Qd6 {[%clk 0:02:21]} 16. Qc5 {[%clk 0:02:32]}  Ne8 {[%clk 0:02:08]} 17. Nf4 {[%clk 0:02:25]}  g6 {[%clk 0:01:38]} 18. Rfc1 {[%clk 0:02:22]}  Qf6 {[%clk 0:01:35]} 19. b5 {[%clk 0:02:21]}  Nd6 {[%clk 0:01:28]} 20. bxc6 {[%clk 0:02:20]}  bxc6 {[%clk 0:01:29]} 21. Rab1 {[%clk 0:02:10]}  Rfe8 {[%clk 0:01:28]} 22. Rb2 {[%clk 0:01:46]}  Ne4 {[%clk 0:01:21]} 23. Bxe4 {[%clk 0:01:44]}  dxe4 {[%clk 0:01:22]} 24. Nh2 {[%clk 0:01:31]}  Nxh2 {[%clk 0:01:04]} 25. Kxh2 {[%clk 0:01:31]}  g5 {[%clk 0:01:02]} 26. Nh3 {[%clk 0:01:20]}  Kg7 {[%clk 0:00:47]} 27. Rb7 {[%clk 0:01:19]}  Bxh3 {[%clk 0:00:46]} 28. Kxh3 {[%clk 0:01:14]}  Qxf2 {[%clk 0:00:46]} 29. Qc4 {[%clk 0:01:07]}  Qf5+ {[%clk 0:00:30]} 30. g4 {[%clk 0:01:07]}  Qg6 {[%clk 0:00:22]} 31. Rf1 {[%clk 0:01:05]}  Rf8 {[%clk 0:00:22]} 32. Qc5 {[%clk 0:01:01]}  h5 {[%clk 0:00:18]} 33. Qe5+ {[%clk 0:01:01]}  Kg8 {[%clk 0:00:16]} 34. Rf6 {[%clk 0:01:01]}  hxg4+ {[%clk 0:00:14]} 35. Kxg4 {[%clk 0:01:01]}  Qg7 {[%clk 0:00:15]} 36. Re7 {[%clk 0:00:57]}  Rad8 {[%clk 0:00:14]} 37. Rxc6 {[%clk 0:00:49]}  f5+ {[%clk 0:00:12]} 38. Kh5 {[%clk 0:00:44]}  Qxe5 {[%clk 0:00:11]} 39. Rg6+ {[%clk 0:00:37]}  Kh8 {[%clk 0:00:09]} 40. Rxe5 {[%clk 0:00:28]}  f4 {[%clk 0:00:09]} 41. Rh6+ {[%clk 0:00:25]}  Kg7 {[%clk 0:00:08]} 42. Rxg5+ {[%clk 0:00:19]}  Kf7 {[%clk 0:00:08]} 43. Rf5+ {[%clk 0:00:18]}  Ke7 {[%clk 0:00:08]} 44. Re5+ {[%clk 0:00:18]}  Kd7 {[%clk 0:00:07]} 45. Rxe4 {[%clk 0:00:13]}  fxe3 {[%clk 0:00:06]} 46. Rxe3 {[%clk 0:00:13]}  Rf5+ {[%clk 0:00:06]} 47. Kg4 {[%clk 0:00:12]}  Ra5 {[%clk 0:00:06]} 48. Re2 {[%clk 0:00:06]}  Kc8 {[%clk 0:00:05]} 49. Rd2 {[%clk 0:00:05]}  Rg8+ {[%clk 0:00:05]} 50. Kf3 {[%clk 0:00:05]}  Ra3+ {[%clk 0:00:05]} 51. Ke4 {[%clk 0:00:06]}  Rag3 {[%clk 0:00:05]} 52. d5 {[%clk 0:00:06]}  Rxg2 {[%clk 0:00:05]} 53. Rxg2 {[%clk 0:00:03]}  Rxg2 {[%clk 0:00:06]} 54. a4 {[%clk 0:00:03]}  Kc7 {[%clk 0:00:05]} 55. Ke5 {[%clk 0:00:03]}  Re2+ {[%clk 0:00:05]} 56. Kd4 {[%clk 0:00:03]}  Ra2 {[%clk 0:00:06]} 57. Kc5 {[%clk 0:00:03]}  Rc2+ {[%clk 0:00:05]} 58. Kb5 {[%clk 0:00:03]}  Rd2 {[%clk 0:00:04]} 59. Rc6+ {[%clk 0:00:01]}  Kd7 {[%clk 0:00:04]} 60. Kc5 {[%clk 0:00:01]}  Rc2+ {[%clk 0:00:04]} 61. Kb5 {[%clk 0:00:02]}  Rd2 {[%clk 0:00:04]} 62. Rc5 {[%clk 0:00:02]}  Kd6 {[%clk 0:00:04]} 63. Rc8 {[%clk 0:00:02]}  Rxd5+ {[%clk 0:00:04]} 64. Ka6 {[%clk 0:00:02]}  Kd7 {[%clk 0:00:04]} 65. Rc3 {[%clk 0:00:01]}  Rd4 {[%clk 0:00:04]} 66. a5 {[%clk 0:00:02]}  Rd5 {[%clk 0:00:05]} 67. Kxa7 {[%clk 0:00:01]}  Rxa5+ {[%clk 0:00:04]} 68. Kb6 {[%clk 0:00:02]}  Rd5 {[%clk 0:00:05]} 69. Rc5 {[%clk 0:00:02]}  Rxc5 {[%clk 0:00:04]} 70. Kxc5 {[%clk 0:00:02]} 1/2-1/2


[Site "https://www.chess.com"]

[Event "Titled Tuesday Blitz August 31 2021"]
[White "Jovic, Stanoje"]
[Black "Dronavalli, Harika"]
[WhiteFideId "905020"]
[BlackFideId "5015197"]
[WhiteElo "2286"]
[BlackElo "2422"]
[Result "0-1"]
[Round "09"]
[TimeControl "180+1"]
[Date "2021.08.31"]
[WhiteClock "0:00:01"]
[BlackClock "0:00:21"]

1. c4 {[%clk 0:03:00]}  Nf6 {[%clk 0:02:54]} 2. g3 {[%clk 0:03:00]}  g6 {[%clk 0:02:54]} 3. Bg2 {[%clk 0:03:00]}  Bg7 {[%clk 0:02:54]} 4. Nc3 {[%clk 0:03:00]}  O-O {[%clk 0:02:52]} 5. Nf3 {[%clk 0:03:00]}  c6 {[%clk 0:02:52]} 6. O-O {[%clk 0:03:00]}  d6 {[%clk 0:02:51]} 7. d3 {[%clk 0:02:59]}  e5 {[%clk 0:02:49]} 8. Rb1 {[%clk 0:02:56]}  a5 {[%clk 0:02:45]} 9. a3 {[%clk 0:02:55]}  Re8 {[%clk 0:02:45]} 10. e4 {[%clk 0:02:55]}  Bg4 {[%clk 0:02:34]} 11. h3 {[%clk 0:02:54]}  Bxf3 {[%clk 0:02:34]} 12. Bxf3 {[%clk 0:02:54]}  Nbd7 {[%clk 0:02:34]} 13. b4 {[%clk 0:02:53]}  axb4 {[%clk 0:02:33]} 14. axb4 {[%clk 0:02:53]}  Nf8 {[%clk 0:02:34]} 15. Be3 {[%clk 0:02:52]}  Ne6 {[%clk 0:02:34]} 16. Qd2 {[%clk 0:02:49]}  Nd4 {[%clk 0:02:28]} 17. Bxd4 {[%clk 0:02:47]}  exd4 {[%clk 0:02:28]} 18. Ne2 {[%clk 0:02:44]}  Nd7 {[%clk 0:02:28]} 19. Ra1 {[%clk 0:02:36]}  Rxa1 {[%clk 0:02:12]} 20. Rxa1 {[%clk 0:02:34]}  h5 {[%clk 0:01:34]} 21. h4 {[%clk 0:02:28]}  Ne5 {[%clk 0:01:26]} 22. Bg2 {[%clk 0:02:27]}  Qf6 {[%clk 0:01:26]} 23. Ra7 {[%clk 0:02:19]}  Re7 {[%clk 0:01:19]} 24. Nxd4 {[%clk 0:01:55]}  Nxc4 {[%clk 0:01:19]} 25. dxc4 {[%clk 0:01:53]}  Qxd4 {[%clk 0:01:19]} 26. Qxd4 {[%clk 0:01:53]}  Bxd4 {[%clk 0:01:20]} 27. Ra8+ {[%clk 0:01:53]}  Kg7 {[%clk 0:01:19]} 28. Rd8 {[%clk 0:01:42]}  Re6 {[%clk 0:01:15]} 29. Rd7 {[%clk 0:01:39]}  Rf6 {[%clk 0:01:13]} 30. Rxb7 {[%clk 0:01:37]}  Bxf2+ {[%clk 0:01:13]} 31. Kh2 {[%clk 0:01:35]}  Bd4 {[%clk 0:01:13]} 32. b5 {[%clk 0:01:33]}  cxb5 {[%clk 0:01:11]} 33. cxb5 {[%clk 0:01:33]}  Rf2 {[%clk 0:01:11]} 34. Kh3 {[%clk 0:01:30]}  Rb2 {[%clk 0:01:10]} 35. e5 {[%clk 0:01:20]}  dxe5 {[%clk 0:01:10]} 36. Bd5 {[%clk 0:01:19]}  Rf2 {[%clk 0:01:10]} 37. b6 {[%clk 0:01:14]}  Rf6 {[%clk 0:01:08]} 38. Re7 {[%clk 0:01:01]}  Bxb6 {[%clk 0:01:07]} 39. Rxe5 {[%clk 0:01:01]}  Rd6 {[%clk 0:01:06]} 40. Bf3 {[%clk 0:00:49]}  Rd3 {[%clk 0:01:03]} 41. Kg2 {[%clk 0:00:48]}  Rd2+ {[%clk 0:01:03]} 42. Re2 {[%clk 0:00:48]}  Rd3 {[%clk 0:01:03]} 43. Rc2 {[%clk 0:00:45]}  Bd4 {[%clk 0:01:00]} 44. Re2 {[%clk 0:00:44]}  Bf6 {[%clk 0:00:59]} 45. Rc2 {[%clk 0:00:44]}  Be5 {[%clk 0:00:58]} 46. Re2 {[%clk 0:00:44]}  Kf6 {[%clk 0:00:58]} 47. Rc2 {[%clk 0:00:44]}  Ra3 {[%clk 0:00:58]} 48. Rc6+ {[%clk 0:00:44]}  Kg7 {[%clk 0:00:58]} 49. Rc2 {[%clk 0:00:43]}  f6 {[%clk 0:00:53]} 50. Re2 {[%clk 0:00:41]}  Kh6 {[%clk 0:00:53]} 51. Re1 {[%clk 0:00:36]}  Ra2+ {[%clk 0:00:52]} 52. Re2 {[%clk 0:00:36]}  Ra3 {[%clk 0:00:51]} 53. Re1 {[%clk 0:00:35]}  Rc3 {[%clk 0:00:52]} 54. Re2 {[%clk 0:00:36]}  Rc5 {[%clk 0:00:52]} 55. Re1 {[%clk 0:00:34]}  g5 {[%clk 0:00:49]} 56. hxg5+ {[%clk 0:00:34]}  fxg5 {[%clk 0:00:50]} 57. Rh1 {[%clk 0:00:33]}  Rc2+ {[%clk 0:00:50]} 58. Kf1 {[%clk 0:00:32]}  g4 {[%clk 0:00:43]} 59. Bd1 {[%clk 0:00:19]}  Rb2 {[%clk 0:00:37]} 60. Rg1 {[%clk 0:00:15]}  Kg5 {[%clk 0:00:36]} 61. Rg2 {[%clk 0:00:14]}  Rb1 {[%clk 0:00:35]} 62. Ke2 {[%clk 0:00:12]}  Ra1 {[%clk 0:00:35]} 63. Bc2 {[%clk 0:00:11]}  Ra3 {[%clk 0:00:32]} 64. Bd3 {[%clk 0:00:11]}  Ra2+ {[%clk 0:00:31]} 65. Kf1 {[%clk 0:00:11]}  Ra1+ {[%clk 0:00:28]} 66. Ke2 {[%clk 0:00:10]}  Bc3 {[%clk 0:00:26]} 67. Bc2 {[%clk 0:00:09]}  Be5 {[%clk 0:00:23]} 68. Bd3 {[%clk 0:00:06]}  Ra7 {[%clk 0:00:22]} 69. Rf2 {[%clk 0:00:05]}  Bxg3 {[%clk 0:00:20]} 70. Rf5+ {[%clk 0:00:05]}  Kh4 {[%clk 0:00:21]} 71. Rf8 {[%clk 0:00:05]}  Re7+ {[%clk 0:00:21]} 72. Kd1 {[%clk 0:00:03]}  Re5 {[%clk 0:00:21]} 73. Rh8 {[%clk 0:00:02]}  Rd5 {[%clk 0:00:21]} 74. Ke2 {[%clk 0:00:02]}  Re5+ {[%clk 0:00:21]} 75. Kd1 {[%clk 0:00:02]}  Bf2 {[%clk 0:00:21]} 76. Bg6 {[%clk 0:00:02]}  g3 {[%clk 0:00:21]} 77. Bf7 {[%clk 0:00:01]}  g2 {[%clk 0:00:21]} 0-1


[Site "https://www.chess.com"]

[Event "Titled Tuesday Blitz August 31 2021"]
[White "Karttunen, Mika"]
[Black "Perera Alfonso, Rene Humberto"]
[WhiteFideId "502081"]
[BlackFideId "3514722"]
[WhiteElo "2343"]
[BlackElo "2313"]
[Result "0-1"]
[Round "09"]
[TimeControl "180+1"]
[Date "2021.08.31"]
[WhiteClock "0:00:02"]
[BlackClock "0:00:33"]

1. e4 {[%clk 0:03:00]}  c5 {[%clk 0:02:57]} 2. Nf3 {[%clk 0:03:00]}  d6 {[%clk 0:02:56]} 3. d4 {[%clk 0:03:00]}  cxd4 {[%clk 0:02:57]} 4. Nxd4 {[%clk 0:03:00]}  Nf6 {[%clk 0:02:54]} 5. Nc3 {[%clk 0:03:00]}  g6 {[%clk 0:02:54]} 6. f3 {[%clk 0:02:53]}  a6 {[%clk 0:02:52]} 7. Be3 {[%clk 0:02:53]}  e5 {[%clk 0:02:52]} 8. Nb3 {[%clk 0:02:52]}  h5 {[%clk 0:02:52]} 9. Qd2 {[%clk 0:02:51]}  Be6 {[%clk 0:02:51]} 10. Nd5 {[%clk 0:02:50]}  Bxd5 {[%clk 0:02:48]} 11. exd5 {[%clk 0:02:50]}  Nbd7 {[%clk 0:02:48]} 12. O-O-O {[%clk 0:02:34]}  Bg7 {[%clk 0:02:20]} 13. Qb4 {[%clk 0:02:12]}  Qc7 {[%clk 0:02:17]} 14. Na5 {[%clk 0:01:52]}  O-O {[%clk 0:01:51]} 15. Nc4 {[%clk 0:01:39]}  Ne8 {[%clk 0:01:40]} 16. Nb6 {[%clk 0:01:33]}  Nxb6 {[%clk 0:01:11]} 17. Bxb6 {[%clk 0:01:22]}  Qd7 {[%clk 0:01:11]} 18. Bd3 {[%clk 0:00:49]}  Nf6 {[%clk 0:00:55]} 19. c4 {[%clk 0:00:48]}  Rfc8 {[%clk 0:00:49]} 20. Kb1 {[%clk 0:00:47]}  e4 {[%clk 0:00:45]} 21. Bxe4 {[%clk 0:00:38]}  Nxe4 {[%clk 0:00:44]} 22. fxe4 {[%clk 0:00:38]}  Qg4 {[%clk 0:00:32]} 23. Qd2 {[%clk 0:00:20]}  Qxe4+ {[%clk 0:00:31]} 24. Qd3 {[%clk 0:00:19]}  Qxc4 {[%clk 0:00:31]} 25. Qxc4 {[%clk 0:00:18]}  Rxc4 {[%clk 0:00:32]} 26. Rc1 {[%clk 0:00:17]}  Rb4 {[%clk 0:00:32]} 27. Ba5 {[%clk 0:00:03]}  Rxb2+ {[%clk 0:00:31]} 28. Ka1 {[%clk 0:00:03]}  Rb3+ {[%clk 0:00:32]} 29. Bc3 {[%clk 0:00:02]}  Bxc3+ {[%clk 0:00:33]} 30. Rxc3 {[%clk 0:00:02]}  Rxc3 {[%clk 0:00:33]} 0-1


[Site "https://www.chess.com"]

[Event "Titled Tuesday Blitz August 31 2021"]
[White "Ljukin, Sergei"]
[Black "Borsuk, Konstantin"]
[WhiteFideId "14102200"]
[BlackFideId "14113406"]
[WhiteElo "2309"]
[BlackElo "2382"]
[Result "0-1"]
[Round "09"]
[TimeControl "180+1"]
[Date "2021.08.31"]
[WhiteClock "0:00:01"]
[BlackClock "0:00:25"]

1. e4 {[%clk 0:02:41]}  e6 {[%clk 0:02:59]} 2. d4 {[%clk 0:02:40]}  d5 {[%clk 0:02:59]} 3. Nc3 {[%clk 0:02:40]}  Bb4 {[%clk 0:02:59]} 4. e5 {[%clk 0:02:40]}  b6 {[%clk 0:02:59]} 5. Qg4 {[%clk 0:02:34]}  Bf8 {[%clk 0:02:59]} 6. Nb5 {[%clk 0:02:30]}  a6 {[%clk 0:02:54]} 7. Na3 {[%clk 0:02:29]}  c5 {[%clk 0:02:53]} 8. c3 {[%clk 0:02:29]}  cxd4 {[%clk 0:02:52]} 9. cxd4 {[%clk 0:02:29]}  Ne7 {[%clk 0:02:51]} 10. Bd3 {[%clk 0:02:24]}  Nf5 {[%clk 0:02:50]} 11. Nf3 {[%clk 0:02:21]}  h5 {[%clk 0:02:48]} 12. Qh3 {[%clk 0:02:13]}  Bb4+ {[%clk 0:02:44]} 13. Bd2 {[%clk 0:02:08]}  Bxd2+ {[%clk 0:02:44]} 14. Kxd2 {[%clk 0:02:08]}  Kd7 {[%clk 0:02:39]} 15. Rhc1 {[%clk 0:02:05]}  g6 {[%clk 0:02:36]} 16. Rc2 {[%clk 0:01:52]}  Nc6 {[%clk 0:02:35]} 17. Rac1 {[%clk 0:01:47]}  Bb7 {[%clk 0:02:35]} 18. Bxf5 {[%clk 0:01:44]}  gxf5 {[%clk 0:02:33]} 19. g3 {[%clk 0:01:41]}  Rc8 {[%clk 0:02:30]} 20. Nb1 {[%clk 0:01:27]}  Qe7 {[%clk 0:02:27]} 21. a3 {[%clk 0:01:22]}  Na5 {[%clk 0:01:46]} 22. Rxc8 {[%clk 0:01:20]}  Bxc8 {[%clk 0:01:41]} 23. Ke1 {[%clk 0:01:05]}  Nc4 {[%clk 0:01:26]} 24. Rc2 {[%clk 0:01:05]}  a5 {[%clk 0:01:26]} 25. Qh4 {[%clk 0:00:55]}  Qf8 {[%clk 0:01:16]} 26. Qf6 {[%clk 0:00:43]}  Rh6 {[%clk 0:01:15]} 27. Qg5 {[%clk 0:00:43]}  Ba6 {[%clk 0:01:07]} 28. b3 {[%clk 0:00:27]}  Rg6 {[%clk 0:01:07]} 29. Qc1 {[%clk 0:00:25]}  Rg4 {[%clk 0:00:55]} 30. bxc4 {[%clk 0:00:20]}  Re4+ {[%clk 0:00:55]} 31. Re2 {[%clk 0:00:18]}  Bxc4 {[%clk 0:00:50]} 32. Rxe4 {[%clk 0:00:17]}  fxe4 {[%clk 0:00:51]} 33. Nfd2 {[%clk 0:00:17]}  Bd3 {[%clk 0:00:50]} 34. Qb2 {[%clk 0:00:14]}  b5 {[%clk 0:00:49]} 35. Nc3 {[%clk 0:00:12]}  Qb8 {[%clk 0:00:48]} 36. Nf1 {[%clk 0:00:08]}  Qb6 {[%clk 0:00:47]} 37. Ne2 {[%clk 0:00:05]}  Qc7 {[%clk 0:00:43]} 38. Nf4 {[%clk 0:00:04]}  Bc4 {[%clk 0:00:30]} 39. Nxh5 {[%clk 0:00:04]}  Bxf1 {[%clk 0:00:25]} 40. Kxf1 {[%clk 0:00:03]}  Qc4+ {[%clk 0:00:26]} 41. Kg2 {[%clk 0:00:02]}  b4 {[%clk 0:00:24]} 42. axb4 {[%clk 0:00:01]}  axb4 {[%clk 0:00:25]} 0-1


[Site "https://www.chess.com"]

[Event "Titled Tuesday Blitz August 31 2021"]
[White "Maksimovic, Bojan"]
[Black "Holt, Conrad"]
[WhiteFideId "14408120"]
[BlackFideId "2034387"]
[WhiteElo "2439"]
[BlackElo "2586"]
[Result "0-1"]
[Round "09"]
[TimeControl "180+1"]
[Date "2021.08.31"]
[WhiteClock "0:00:01"]
[BlackClock "0:00:43"]

1. e4 {[%clk 0:03:00]}  e6 {[%clk 0:02:59]} 2. d4 {[%clk 0:03:00]}  d5 {[%clk 0:03:00]} 3. exd5 {[%clk 0:03:00]}  exd5 {[%clk 0:03:00]} 4. Bd3 {[%clk 0:03:01]}  Nc6 {[%clk 0:02:58]} 5. c3 {[%clk 0:03:00]}  Bd6 {[%clk 0:02:58]} 6. Ne2 {[%clk 0:02:54]}  Qh4 {[%clk 0:02:57]} 7. g3 {[%clk 0:02:37]}  Qh5 {[%clk 0:02:57]} 8. Nf4 {[%clk 0:02:31]}  Qxd1+ {[%clk 0:02:56]} 9. Kxd1 {[%clk 0:02:32]}  Nf6 {[%clk 0:02:46]} 10. f3 {[%clk 0:02:23]}  Bd7 {[%clk 0:02:29]} 11. Ne2 {[%clk 0:02:21]}  O-O-O {[%clk 0:02:26]} 12. Bf4 {[%clk 0:02:21]}  Bxf4 {[%clk 0:02:24]} 13. Nxf4 {[%clk 0:02:22]}  g5 {[%clk 0:02:24]} 14. Ne2 {[%clk 0:02:21]}  h5 {[%clk 0:02:23]} 15. Nd2 {[%clk 0:02:01]}  h4 {[%clk 0:02:18]} 16. g4 {[%clk 0:01:58]}  Rde8 {[%clk 0:02:02]} 17. Kc2 {[%clk 0:01:57]}  Re3 {[%clk 0:01:59]} 18. Raf1 {[%clk 0:01:56]}  Rhe8 {[%clk 0:01:52]} 19. Rf2 {[%clk 0:01:57]}  Na5 {[%clk 0:01:35]} 20. b3 {[%clk 0:01:48]}  b6 {[%clk 0:01:35]} 21. Rd1 {[%clk 0:01:29]}  c5 {[%clk 0:01:33]} 22. Nf1 {[%clk 0:01:23]}  R3e7 {[%clk 0:01:24]} 23. Ba6+ {[%clk 0:01:18]}  Kc7 {[%clk 0:01:24]} 24. dxc5 {[%clk 0:01:00]}  bxc5 {[%clk 0:01:22]} 25. Nc1 {[%clk 0:01:01]}  c4 {[%clk 0:01:18]} 26. Kb2 {[%clk 0:00:21]}  Re6 {[%clk 0:01:12]} 27. b4 {[%clk 0:00:20]}  Ba4 {[%clk 0:00:56]} 28. Rdd2 {[%clk 0:00:11]}  Rb8 {[%clk 0:00:51]} 29. Ka1 {[%clk 0:00:06]}  Re1 {[%clk 0:00:49]} 30. Rc2 {[%clk 0:00:02]}  Bxc2 {[%clk 0:00:48]} 31. Rxc2 {[%clk 0:00:01]}  Rxf1 {[%clk 0:00:45]} 32. bxa5 {[%clk 0:00:01]}  Nd7 {[%clk 0:00:44]} 33. a4 {[%clk 0:00:02]}  Nc5 {[%clk 0:00:44]} 34. Bb5 {[%clk 0:00:01]}  a6 {[%clk 0:00:43]} 0-1


[Site "https://www.chess.com"]